[Event "Cracovia Festival-A 2023"]
[Site "Krakow"]
[Date "2024.01.03"]
[Round "8.3"]
[White "Akbas, Umut Ata"]
[Black "Bogdanov, Egor"]
[Result "1/2-1/2"]
[ECO "E32"]
[WhiteElo "2446"]
[BlackElo "2394"]
[Annotator "RC"]
[PlyCount "75"]
[EventDate "2023.12.24"]
[EventType "swiss"]
[EventCountry "POL"]
[SourceTitle "playchess.com"]
[Source "ChessBase"]
[SourceQuality "1"]
[TimeControl "40/5400+30:1800+30"]

1. d4 {[%emt 0:10:32]} Nf6 {[%emt 0:00:07]} 2. c4 {[%emt 0:00:08]} e6 {[%emt 0:00:04]} 3. Nc3 {[%emt 0:00:18]} Bb4 {[%emt 0:00:12]} 4. Qc2 {[%emt 0:00:10]} O-O {[%emt 0:02:19]} 5. a3 {[%emt 0:00:13]} Bxc3+ {[%emt 0:05:08]} 6. Qxc3 {[%emt 0:00:09]} b6 {[%emt 0:01:47]} 7. Bg5 {[%emt 0:08:42]} Bb7 {[%emt 0:05:43]} 8. f3 {[%emt 0:01:19]} d5 {[%emt 0:08:46]} 9. e3 {[%emt 0:03:45]} dxc4 {[%emt 0:06:52]} 10. Bxc4 {[%emt 0:01:42]} Nbd7 {[%emt 0:01:06]} 11. Nh3 {[%emt 0:09:58]} h6 {[%emt 0:00:46]} 12. Bh4 {[%emt 0:02:25]} c5 {[%emt 0:15:21]} 13. dxc5 {[%emt 0:20:23]} Nxc5 14. Rd1 {[%emt 0:09:47]} Nd5 {[%emt 0:12:39]} 15. Qd4 {[%emt 0:02:43]} Nxe3 {[%emt 0:09:29]} 16. Qxd8 {[%emt 0:02:35]} Raxd8 {[%emt 0:00:27]} 17. Bxd8 {[%emt 0:04:40]} Nxd1 {[%emt 0:01:31]} 18. Be7 {[%emt 0:00:08]} Re8 {[%emt 0:00:09]} 19. Bxc5 {[%emt 0:00:22]} Nxb2 {[%emt 0:00:05]} 20. Bb5 {[%emt 0:00:17]} Rd8 {[%emt 0:00:19]} 21. Bg1 {[%emt 0:03:10]} Rd1+ {[%emt 0:00:43]} 22. Kf2 {[%emt 0:03:01]} e5 {[%emt 0:05:38]} 23. Ke3 {[%emt 0:05:37]} f5 {[%emt 0:02:59]} 24. Nf2 {[%emt 0:00:39]} Rd5 {[%emt 0:02:35]} 25. a4 {[%emt 0:03:18]} a6 {[%emt 0:00:32]} 26. Bd3 {[%emt 0:00:36]} e4 {[%emt 0:07:24]} 27. fxe4 {[%emt 0:02:45]} Rxd3+ {[%emt 0:05:14]} 28. Nxd3 {[%emt 0:00:07]} Nxd3 {[%emt 0:00:52]} 29. Bf2 {[%emt 0:00:53]} Bxe4 {[%emt 0:00:31]} 30. Ra1 {[%emt 0:00:58]} b5 {[%emt 0:02:21]} 31. axb5 {[%emt 0:01:45]} axb5 {[%emt 0:00:00]} 32. Ra5 {[%emt 0:01:15]} Ne5 {[%emt 0:03:57]} 33. Rxb5 {[%emt 0:00:54]} Ng4+ {[%emt 0:00:02]} 34. Ke2 {[%emt 0:00:10]} Nxh2 {[%emt 0:00:13]} 35. g3 {[%emt 0:01:32]} g5 {[%emt 0:01:23]} 36. Rb6 {[%emt 0:00:40]} Ng4 {[%emt 0:00:22]} 37. Bd4 {[%emt 0:00:16]} Kf7 {[%emt 0:00:16]} 38. Bc3 {[%emt 0:00:46]} 1/2-1/2

[Event "Cracovia Festival-A 2023"]
[Site "Krakow"]
[Date "2024.01.03"]
[Round "8.4"]
[White "Janik, Igor"]
[Black "Puranik, Abhimanyu"]
[Result "1/2-1/2"]
[ECO "A08"]
[WhiteElo "2514"]
[BlackElo "2627"]
[Annotator "TA"]
[PlyCount "58"]
[EventDate "2023.12.24"]
[EventType "swiss"]
[EventCountry "POL"]
[SourceTitle "playchess.com"]
[Source "ChessBase"]
[SourceQuality "1"]
[TimeControl "40/5400+30:1800+30"]

{[%evp 9,58,2,6,21,10,0,0,0,16,14,10,10,15,8,21,0,0,0,0,-37,-31,-37,-6,-4,-8,-7,0,-6,0,0,0,-6,0,0,0,0,0,0,3,7,18,0,0,0,0,0,0,0,0,0,0]} 1. Nf3 {[%emt 0:00:02]} d5 {[%emt 0:00:05]} 2. g3 {[%emt 0:00:21]} c5 {[%emt 0:00:13]} 3. Bg2 {[%emt 0:00:20]} g6 {[%emt 0:00:06]} 4. c3 {[%emt 0:00:08]} Bg7 {[%emt 0:00:15]} 5. d4 {[%emt 0:00:06]} Nd7 {[%emt 0:00:20]} 6. O-O {[%emt 0:00:27][%cal Oc3c4] A08: King's Indian Attack.} Ngf6 {[%emt 0:01:51]} 7. a4 {[%emt 0:00:14][%cal Ba2a4,Ba4a5][%mdl 32]} b6 {[%emt 0:01:56]} 8. Ne5 {[%emt 0:05:50]} O-O {[%emt 0:02:51] [#]} 9. a5 $146 {[%emt 0:02:55]} ({Predecessor:} 9. Bf4 Bb7 10. a5 Rc8 11. Qb3 Nh5 12. axb6 Nxf4 13. gxf4 axb6 14. Ra7 Nxe5 15. fxe5 {1-0 Bayer,J (2183)-Siigur,J (2427) VW-Cup12 Gr15 email 2019}) 9... Ba6 {[%emt 0:00:03]} 10. Bf4 {[%emt 0:02:23][%cal Oc3c4]} Qc8 {[%emt 0:17:02]} 11. Re1 {[%emt 0:03:36]} Rd8 {[%emt 0:04:43]} 12. Qa4 {[%emt 0:17:06]} Nxe5 {[%emt 0:01:39]} 13. Bxe5 {[%emt 0:00:43]} Qf5 {[%emt 0:02:40]} 14. Bxf6 {[%emt 0:00:21]} Qxf6 {[%emt 0:00:38]} ({But not} 14... exf6 15. e4 Qc8 16. exd5 $14) 15. e3 $1 {[%emt 0:00:20]} e5 {[%emt 0:05:17][%cal Re5d4]} (15... b5 {simplifies} 16. Qc2 Qd6 17. Nd2 Rac8) 16. dxe5 {[%emt 0:01:01] The position is equal.} Qxe5 {[%emt 0:00:03]} 17. axb6 {[%emt 0:00:28]} axb6 {[%emt 0:00:08] [#] aiming for ...Bb7.} 18. Nd2 {[%emt 0:00:36]} Qc7 {[%emt 0:02:57]} 19. Qb3 {[%emt 0:02:12]} Bb7 {[%emt 0:03:11][%cal Ba6b7,Bb7c6,Bc6d7][%mdl 32]} 20. Rxa8 {[%emt 0:00:34]} Rxa8 {[%emt 0:10:06]} 21. Rd1 {[%emt 0:03:04]} (21. Bxd5 $2 {loses.} Bxd5 22. Qxd5 Rd8 $19) 21... Rd8 {[%emt 0:00:03]} (21... c4 $5 22. Qc2 $8 b5 $15) 22. Nf3 {[%emt 0:03:19][%cal Bd2f3,Bf3e1,Be1d3][%mdl 32]} Bc6 {[%emt 0:04:00]} 23. Ne1 {[%emt 0:08:00][%cal Rg2d5]} b5 {[%emt 0:01:13]} 24. Qc2 {[%emt 0:00:24]} (24. Bxd5 $2 {is the wrong capture.} c4 25. Bxc4 bxc4 26. Rxd8+ Qxd8 27. Qxc4 Qd7 $19) 24... Qa7 {[%emt 0:11:54]} 25. Nd3 {[%emt 0:03:10]} Bd7 {[%emt 0:07:17]} 26. Qe2 {[%emt 0:13:52]} d4 {[%emt 0:02:07]} 27. exd4 {[%emt 0:00:12]} cxd4 {[%emt 0:00:03]} 28. Ne5 {[%emt 0:00:48]} Bxe5 {[%emt 0:08:36]} 29. Qxe5 {[%emt 0:00:04]} dxc3 {Weighted Error Value: White=0.04 (flawless) /Black=0.04 (flawless)} 1/2-1/2

[Event "Cracovia Festival-A 2023"]
[Site "Krakow"]
[Date "2024.01.03"]
[Round "8.5"]
[White "Polak, Tomas"]
[Black "Baumegger, Siegfried"]
[Result "1/2-1/2"]
[ECO "A04"]
[WhiteElo "2517"]
[BlackElo "2388"]
[Annotator "TA"]
[PlyCount "144"]
[EventDate "2023.12.24"]
[EventType "swiss"]
[EventCountry "POL"]
[SourceTitle "playchess.com"]
[Source "ChessBase"]
[SourceQuality "1"]
[TimeControl "40/5400+30:1800+30"]

{[%evp 16,144,-7,-19,12,-17,-21,-23,-1,0,0,-84,-38,-54,-41,-44,-22,-83,-63,-150,-131,-158,-129,-152,-59,-117,-118,-211,-204,-197,-218,-208,-203,-221,-231,-244,-230,-246,-233,-204,-149,-196,-150,-178,-177,-177,-175,-217,0,-121,-93,-111,-9,-17,0,-193,-165,-191,-188,-168,-159,-168,-135,-110,0,0,72,0,0,6,100,93,102,0,0,0,0,0,0,0,0,0,0,0,0,0,24,0,0,0,0,0,382,0,0,0,415,402,346,368,724,295,295,295,666,0,0,0,579,294,287,293,290,297,297,0,0,0,292,292,12834,0,0,0,0,0,0,0,0,0,0]} 1. Nf3 {[%emt 0:00:05]} c5 {[%emt 0:00:59]} 2. c4 {[%emt 0:00:19]} g6 {[%emt 0:00:15]} 3. Nc3 {[%emt 0:00:37]} Bg7 {[%emt 0:00:28]} 4. d4 {[%emt 0:00:25]} cxd4 {[%emt 0:00:10]} 5. Nxd4 {[%emt 0:00:08]} Nc6 {[%emt 0:00:08]} 6. Nb3 {[%emt 0:00:28]} Nf6 {[%emt 0:05:09]} 7. g3 {[%emt 0:01:48]} O-O {[%emt 0:16:45]} 8. Bg2 {[%emt 0:00:32]} d6 {[%emt 0:09:06]} 9. O-O {[%emt 0:02:48]} Nd7 {[%emt 0:03:12] [#] E60: King's Indian: Unusual lines and Fianchetto Variation without Nc3.} 10. h3 $146 {[%emt 0:11:35]} ({Predecessor:} 10. Na4 Nb6 11. Nxb6 Qxb6 12. Be3 Qa6 13. Nd4 Bxd4 14. Bxd4 Qxc4 15. Bc3 Be6 16. Qd2 Rfe8 17. Rfd1 {½-½ Pultinevicius,P (2395)-Hakobyan,A (2449) Somov Memorial 15th 2017 (5)}) 10... Bxc3 {[%emt 0:13:50]} 11. bxc3 {[%emt 0:00:24]} Qc7 {[%emt 0:00:53] Black has an edge.} 12. Bh6 {[%emt 0:02:46]} Re8 {[%emt 0:00:24]} 13. f4 {[%emt 0:02:43]} (13. Nd4 $11) 13... Nd8 {[%emt 0:06:00]} (13... b6 $17) 14. f5 {[%emt 0:13:28]} Ne5 {[%emt 0:08:18]} 15. f6 {[%emt 0:03:56]} Ne6 {[%emt 0:01:59]} 16. Nd2 {[%emt 0:23:56]} (16. fxe7 $11 Bd7 17. Rb1) 16... Nc5 {[%emt 0:03:26]} (16... Nxc4 $6 17. Nxc4 Qxc4 18. Qd2 $11) (16... exf6 17. Ne4 Nd7 18. g4 $14 (18. Nxf6+ Nxf6 19. Rxf6 Bd7 $11) (18. Qxd6 f5 $14) (18. Nxd6 Rd8 $15)) (16... Bd7 {with more complications.} 17. fxe7 Bc6 18. Bd5 Bxd5 19. cxd5 Qc5+) 17. Nf3 {[%emt 0:05:21]} (17. Nb3 $15) 17... exf6 $17 {[%emt 0:03:39]} 18. Qd4 {[%emt 0:04:51]} Qe7 {[%emt 0:03:43]} 19. Qh4 {[%emt 0:02:14]} Nxf3+ {[%emt 0:06:55]} (19... g5 $17 20. Qh5 Ne4 21. Nxe5 Nxg3 22. Qxf7+ Qxf7 23. Nxf7 Kxf7 24. Bxg5 Nxf1 25. Rxf1 Kg6 26. Bxf6 Rxe2) 20. exf3 {[%emt 0:01:09]} (20. Rxf3 $15 Ne4 21. Re3) 20... Bd7 {[%emt 0:03:36]} 21. Rae1 {[%emt 0:07:34]} Qxe1 $19 {[%emt 0:01:03]} 22. Rxe1 {[%emt 0:00:10]} Rxe1+ {[%emt 0:00:06]} 23. Kh2 {[%emt 0:00:03]} Re6 {[%emt 0:00:41]} (23... g5 24. Qd4 Re6 25. h4 $15) 24. Qd4 {[%emt 0:00:20]} Bc6 {[%emt 0:00:52]} 25. g4 {[%emt 0:00:53]} Rae8 {[%emt 0:03:37]} 26. Kg3 {[%emt 0:00:25]} a5 {[%emt 0:01:52]} 27. h4 {[%emt 0:01:11]} Nd7 {[%emt 0:00:26]} 28. a3 {[%emt 0:01:15]} (28. Bd2 $17 {was worth a try.}) 28... Ne5 {[%emt 0:01:54]} (28... Nc5 $19 29. Qd2 Nd7) 29. Kf2 $17 {[%emt 0:04:55]} a4 {[%emt 0:01:10]} 30. Kg3 {[%emt 0:02:33]} Nd7 {[%emt 0:00:21]} 31. Bf4 {[%emt 0:02:27]} Ne5 {[%emt 0:00:59]} (31... Re2 $19 {aiming for ...Ra2.} 32. Bf1 Ra2 33. Bxd6 Ne5 34. Bxe5 fxe5) 32. Bh6 {[%emt 0:00:13]} Rc8 {[%emt 0:02:20]} 33. g5 {[%emt 0:02:28]} Rce8 {[%emt 0:00:45]} (33... Bd7 $17 34. Qb6 Rxc4 35. Qd8+ Be8 36. gxf6 Rxc3) 34. gxf6 $1 $11 {[%emt 0:01:10]} Nd7 {[%emt 0:01:34]} 35. Bg5 {[%emt 0:00:52] [#]} (35. Bh3 $1 $11 {and White has nothing to worry.}) 35... h6 $1 $19 {[%emt 0:00:22][%mdl 576] Deflection} 36. Bxh6 {[%emt 0:01:43]} Nxf6 {[%emt 0:00:09] And now ...Nh5+ would win.} 37. Bf1 {[%emt 0:00:26]} Nh5+ {[%emt 0:00:32]} 38. Kf2 {[%emt 0:00:26]} Kh7 {[%emt 0:01:00]} 39. Bg5 {[%emt 0:00:20]} f6 {[%emt 0:00:25]} (39... Re1 $1 $17 40. Qxd6 Ra1) 40. Bd2 $11 {[%emt 0:00:00]} Ng7 {[%emt 0:00:00]} (40... R8e7 $11 {keeps the balance.}) 41. Bd3 {[%emt 0:03:47]} ({Better is} 41. Qf4 $1 $16 {[%cal Rf4h6]}) 41... f5 $1 {[%emt 0:14:05]} (41... Nf5 $2 42. Qg4 (42. Qf4 Bd7 $18) 42... Bd7 43. h5 $18) 42. Qf4 {[%emt 0:04:21]} Kg8 {[%emt 0:00:23] [#]} (42... b6 $11 {remains equal.}) 43. c5 $1 $16 {[%emt 0:06:21]} d5 {[%emt 0:00:58]} (43... dxc5 $2 44. Bc4 $18) (43... Rd8 44. Be3) 44. c4 {[%emt 0:07:04]} ({White should play} 44. Qd4 $16 R6e7 45. c4) 44... d4 $1 $11 {[%emt 0:01:51]} 45. Qxd4 {[%emt 0:05:41]} Nh5 {[%emt 0:00:55]} 46. Bf4 {[%emt 0:05:37]} Be4 {[%emt 0:04:16]} 47. Bd6 {[%emt 0:00:50]} Bxd3 {[%emt 0:01:28]} 48. Qxd3 {[%emt 0:00:02]} f4 {[%emt 0:02:10]} 49. Kg2 {[%emt 0:00:49]} Re2+ {[%emt 0:09:02]} 50. Kh3 $1 {[%emt 0:00:07]} R8e6 {[%emt 0:00:10]} 51. Qd5 {[%emt 0:00:53][%cal Od6c7]} (51. c6 $5 bxc6 52. Bc5 $14) 51... Re1 {[%emt 0:00:13]} 52. Qg5 {[%emt 0:01:16]} Rh1+ {[%emt 0:00:59]} 53. Kg2 {[%emt 0:00:03]} Ree1 $2 {[%emt 0:00:24][%mdl 8192] [#]} (53... Rhe1 $11 54. Kh3 (54. Bxf4 R6e2+ 55. Kh3 Rh1+ 56. Kg4 Rg2+ {[%mdl 64] Skewer}) 54... Rh1+ 55. Kg2 Rhe1 56. Kh3 (56. Bxf4 R6e2+ 57. Kh3 Rh1+ 58. Kg4 Rg2+ {[%mdl 64] Skewer})) 54. Qd8+ $2 {[%emt 0:00:52]} (54. Bxf4 $2 Reg1+ 55. Kf2 Rxg5 $19) (54. Qxg6+ Ng7 55. Qf6 (55. Bxf4 $2 Reg1+ {[%mdl 64] Skewer} 56. Kf2 Rxg6 $19) 55... Rhg1+ 56. Kh2 Rh1+ 57. Kg2 Rhg1+ 58. Kh2 Rh1+ 59. Kg2 $11) (54. Qd5+ $1 $18 Kh7 55. Qxb7+ Ng7 56. Bxf4 Rhg1+ 57. Kh3 Rh1+ 58. Kg4 Rhg1+ 59. Bg3) 54... Kh7 {[%emt 0:00:19]} 55. Qc7+ {[%emt 0:00:09]} Kg8 $2 {[%emt 0:00:52][%mdl 8192]} (55... Ng7 $11) 56. Qc8+ $18 {[%emt 0:00:36]} (56. Bxf4 Nxf4+ 57. Qxf4 Rhg1+ 58. Kf2 Rgf1+ 59. Kg2 Rg1+ 60. Kf2 Rgf1+ 61. Kg3 Rg1+ 62. Kh3 Rh1+ 63. Kg2 Rhg1+ $11) (56. Qxb7 Rhg1+ 57. Kf2 Rgf1+ 58. Kg2 Rg1+ 59. Kh2 Rh1+ 60. Kg2 Rhg1+ $11) 56... Kh7 {[%emt 0:00:10]} 57. Qxb7+ {[%emt 0:00:20]} Kg8 $2 {[%emt 0:00:07]} (57... Ng7) 58. Qc8+ {[%emt 0:00:38]} (58. Qb8+ $142 Kf7 59. Qf8+ {[%mdl 64] Skewer} (59. Bxf4 Rhg1+ 60. Kf2 Rgf1+ 61. Kg2 Rg1+ 62. Kh2 Rh1+ 63. Kg2 Rhg1+ $11) 59... Ke6 60. Qe7+ (60. Bxf4 Nxf4+ 61. Qxf4 Rhg1+ 62. Kf2 Rgf1+ 63. Kg2 Rg1+ 64. Kh2 Rh1+ 65. Kg2 Rhg1+ $11) 60... Kf5 61. Qg5+ Ke6 62. Qd5+ (62. Bxf4 $2 Reg1+ 63. Kf2 Rxg5 $19) 62... Kf6 63. Be5+ Rxe5 64. Qd8+ Kf7 65. Kxh1 Ng3+ 66. Kg2) 58... Kh7 {[%emt 0:00:08]} 59. Qc7+ {[%emt 0:00:49]} Kg8 $2 {[%emt 0:00:14] [#]} (59... Ng7 60. Bxf4 Rhg1+ 61. Kh3 Rh1+ 62. Kg4 Rhg1+ 63. Bg3 Kg8) 60. Qc8+ $2 {[%emt 0:00:40]} (60. Bxf4 Rhg1+ 61. Kf2 Rgf1+ 62. Kg2 Rg1+ 63. Kh3 Nxf4+ 64. Qxf4 Rh1+ 65. Kg3 Rhg1+ 66. Kh3 Rh1+ 67. Kg3 Rhg1+ 68. Kh2 Rh1+ 69. Kg3 $11) (60. Qb8+ $1 $18 Kf7 61. Qf8+ {[%mdl 64] Skewer} (61. Bxf4 Rhg1+ 62. Kf2 Rgf1+ 63. Kg2 Rg1+ 64. Kh2 Rh1+ 65. Kg2 Rhg1+ $11) 61... Ke6 62. Qe7+ (62. Bxf4 Nxf4+ 63. Qxf4 Rhg1+ 64. Kf2 Rgf1+ 65. Kg2 Rg1+ 66. Kf2 Rgf1+ 67. Kg2 Rg1+ $11) 62... Kf5 63. Qg5+ Ke6 64. Qd5+ (64. Bxf4 $2 Reg1+ 65. Kf2 Rxg5 $19) 64... Kf6 65. Be5+ Rxe5 66. Qd8+ Kf7 67. Kxh1 Ng3+ 68. Kg2) 60... Kh7 $11 {[%emt 0:00:10]} 61. Qb7+ $2 {[%emt 0:00:21][%mdl 8192]} (61. Qd7+ $11 Ng7 62. Bf8 (62. Bxf4 Reg1+ 63. Kf2 Rf1+ 64. Kg2 Rfg1+ 65. Kf2 Rf1+ 66. Ke3 Re1+ 67. Kd3 Rd1+ 68. Bd2 Rh2 $11) (62. Qxa4 Rhg1+ 63. Kh2 Rh1+ 64. Kg2 Rhg1+ 65. Kh2 Rh1+ 66. Kg2 $11) 62... Rhg1+ 63. Kf2 Rgf1+ 64. Kg2 Rg1+ 65. Kh2 Rh1+ 66. Kg2 Rhg1+) 61... Kg8 $1 $18 {[%emt 0:01:38]} 62. Qd5+ {[%emt 0:00:06]} Kh7 {[%emt 0:01:18]} 63. Qf7+ {[%emt 0:00:52]} Ng7 {[%emt 0:00:10]} 64. Bxf4 {[%emt 0:00:35] Threatens to win with Bh2.} Rhg1+ {[%emt 0:00:13]} 65. Kf2 $2 {[%emt 0:00:09]} (65. Kh3 $18 {Strongly threatening Bh2.} Rh1+ 66. Kg4 Rhg1+ 67. Kh3 Rh1+ 68. Kg4 Rhg1+ 69. Bg3) 65... Rgf1+ $11 {[%emt 0:00:17]} 66. Kg2 $2 {[%emt 0:00:19][%mdl 8192]} (66. Kg3 $11 Kh8 67. Bh6 (67. Qxg6 $2 {too greedy.} Rg1+ {[%mdl 64] Skewer} 68. Kf2 Ref1+ 69. Ke2 Rxg6 $19) 67... Nf5+ 68. Kf4 Rxf3+ {[%mdl 64] Decoy} 69. Kxf3 Rf1+ 70. Kg2 Ne3+ 71. Bxe3 Rxf7 72. Kg3) 66... Rg1+ $18 {[%emt 0:00:08]} 67. Kh3 {[%emt 0:00:23]} Ref1 $2 {[%emt 0:01:45]} (67... Rh1+ 68. Kg4 Rhg1+ 69. Bg3 Kh6 70. Qf4+ Kh7) 68. c6 $2 {[%emt 0:01:12]} (68. Be3 $18 {[%cal Oc5c6] White threatens c6! and mate.} g5 69. hxg5) 68... Rxf3+ $11 {[%emt 0:00:18] The position is equal.} 69. Kh2 {[%emt 0:00:03] Dancing on a razor blade.} Rgf1 $1 {[%emt 0:00:12]} 70. c7 {[%emt 0:00:50]} R1f2+ {[%emt 0:00:07]} 71. Kg1 {[%emt 0:00:08]} Rf1+ {[%emt 0:00:06]} 72. Kg2 {[%emt 0:00:03]} R1f2+ {[%emt 0:00:34] White used his chance.   Weighted Error Value: White=0.49/Black=0.44} 1/2-1/2

[Event "Cracovia Festival-A 2023"]
[Site "Krakow"]
[Date "2024.01.03"]
[Round "8.6"]
[White "Soffer, Ram"]
[Black "Lewicki, Miroslaw"]
[Result "1-0"]
[ECO "A13"]
[WhiteElo "2444"]
[BlackElo "2321"]
[Annotator "RC"]
[PlyCount "119"]
[EventDate "2023.12.24"]
[EventType "swiss"]
[EventCountry "POL"]
[SourceTitle "playchess.com"]
[Source "ChessBase"]
[SourceQuality "1"]
[TimeControl "40/5400+30:1800+30"]

1. c4 {[%emt 0:00:07]} e6 {[%emt 0:00:12]} 2. Nf3 {[%emt 0:00:40]} Nf6 {[%emt 0:00:14]} 3. g3 {[%emt 0:00:22]} d5 {[%emt 0:00:07]} 4. Bg2 {[%emt 0:00:30]} Be7 {[%emt 0:00:38]} 5. d4 {[%emt 0:00:21]} O-O {[%emt 0:00:06]} 6. Nc3 {[%emt 0:00:40]} dxc4 {[%emt 0:01:33]} 7. Ne5 {[%emt 0:00:41]} Nc6 {[%emt 0:00:24]} 8. Bxc6 {[%emt 0:00:10]} bxc6 {[%emt 0:00:05]} 9. Nxc6 {[%emt 0:00:04]} Qe8 {[%emt 0:00:22]} 10. Nxe7+ {[%emt 0:00:04]} Qxe7 {[%emt 0:00:06]} 11. Qa4 {[%emt 0:00:42]} e5 {[%emt 0:04:24]} 12. dxe5 {[%emt 0:02:44]} Qxe5 {[%emt 0:00:16]} 13. Bf4 {[%emt 0:00:55]} Qe6 {[%emt 0:01:12]} 14. f3 {[%emt 0:02:23]} Re8 {[%emt 0:12:20]} 15. O-O-O {[%emt 0:01:22]} Bb7 {[%emt 0:11:11]} 16. Qa5 {[%emt 0:03:34]} Re7 {[%emt 0:15:39]} 17. Bxc7 {[%emt 0:02:29]} Ng4 {[%emt 0:06:04]} 18. Bf4 {[%emt 0:16:16]} Nf2 {[%emt 0:00:17]} 19. Rd6 {[%emt 0:00:05]} Qh3 {[%emt 0:00:08]} 20. Rd8+ {[%emt 0:00:37]} Re8 {[%emt 0:00:03]} 21. Rxe8+ {[%emt 0:00:14]} Rxe8 {[%emt 0:00:04]} 22. Qb5 {[%emt 0:00:14]} Rf8 {[%emt 0:03:56]} 23. Re1 {[%emt 0:04:30]} Bxf3 {[%emt 0:00:11]} 24. Qxc4 {[%emt 0:02:48]} Ba8 {[%emt 0:06:13]} 25. Qd4 {[%emt 0:00:48]} Qxh2 {[%emt 0:00:47]} 26. Rf1 {[%emt 0:00:32]} Nh3 {[%emt 0:04:22]} 27. Bd6 {[%emt 0:01:46]} Qg2 {[%emt 0:00:23]} 28. Bxf8 {[%emt 0:03:10]} Qxf1+ {[%emt 0:00:05]} 29. Nd1 {[%emt 0:10:51]} Qf6 {[%emt 0:00:27]} 30. Qxa7 {[%emt 0:00:29]} Qc6+ {[%emt 0:07:49]} 31. Qc5 {[%emt 0:00:19]} Qe6 {[%emt 0:00:17]} 32. Nc3 {[%emt 0:04:21]} h6 {[%emt 0:02:08]} 33. Qd6 {[%emt 0:09:34]} Qe3+ {[%emt 0:00:35]} 34. Kc2 {[%emt 0:00:12]} Be4+ {[%emt 0:02:22]} 35. Kb3 {[%emt 0:00:33]} Bf5 {[%emt 0:00:50]} 36. Qb8 {[%emt 0:03:17]} Kh7 {[%emt 0:01:28]} 37. a4 {[%emt 0:02:03]} Ng5 {[%emt 0:04:33]} 38. Qf4 {[%emt 0:02:05]} Qe6+ {[%emt 0:00:59]} 39. Kb4 {[%emt 0:02:25]} Bc2 {[%emt 0:01:50]} 40. Ka5 {[%emt 0:00:00]} Qd7 {[%emt 0:00:00]} 41. Qd6 {[%emt 0:11:50]} Qe8 {[%emt 0:07:10]} 42. b4 {[%emt 0:10:53]} Qa8+ {[%emt 0:02:30]} 43. Kb6 {[%emt 0:01:48]} Ne6 {[%emt 0:01:17]} 44. Be7 {[%emt 0:00:05]} Bxa4 {[%emt 0:00:23]} 45. Nxa4 {[%emt 0:07:10]} Qxa4 {[%emt 0:00:05]} 46. Qc6 {[%emt 0:00:24]} Qa3 {[%emt 0:05:52]} 47. Qe4+ {[%emt 0:00:38]} g6 {[%emt 0:00:34]} 48. Qf3 {[%emt 0:00:59]} Qxf3 {[%emt 0:00:52]} 49. exf3 {[%emt 0:00:02]} g5 {[%emt 0:00:38]} 50. Bc5 {[%emt 0:02:17]} h5 {[%emt 0:01:56]} 51. Bf2 {[%emt 0:01:18]} Kg6 {[%emt 0:11:24]} 52. b5 {[%emt 0:01:08]} Kf6 {[%emt 0:03:16]} 53. Kc6 {[%emt 0:00:58]} Ke7 {[%emt 0:00:07]} 54. b6 {[%emt 0:00:50]} f5 {[%emt 0:02:43]} 55. Kd5 {[%emt 0:01:52]} Kd7 {[%emt 0:04:49]} 56. b7 {[%emt 0:01:04]} Nc7+ {[%emt 0:00:08]} 57. Ke5 {[%emt 0:00:04]} Na6 {[%emt 0:00:04]} 58. Kxf5 {[%emt 0:04:57]} h4 {[%emt 0:00:29]} 59. gxh4 {[%emt 0:00:10]} gxh4 {[%emt 0:00:06]} 60. Ba7 {[%emt 0:00:14]} 1-0